bitfinex/quotes_SOLUSD_20251231
["timestamp","ask_amount","ask_price","bid_price","bid_amount"]
[1767199993712,104.6,124.98,124.95,5.0073017]
[1767199993928,0.69338495,124.97,124.95,5.0073017]
[1767199994128,0.69338495,124.97,124.94,5.67032659]
[1767199994736,0.69338495,124.97,124.91,15.30302489]
[1767199994937,0.69338495,124.96,124.93,5.0073017]
[1767199995239,0.69338495,124.95,124.91,19.6473017]
[1767199995417,0.69338495,124.95,124.92,5.0073017]
[1767199996433,0.69338495,124.95,124.93,5.0073017]
[1767199997863,0.69338495,124.95,124.92,5.0073017]
[1767199998840,0.69338495,124.95,124.91,20.31032659]
[1767199999337,0.69338495,124.95,124.92,5.0073017]
[1767199999947,0.69338495,124.95,124.91,15.30302489]
[1767200000116,0.69338495,124.95,124.92,5.0073017]
[1767200000942,0.69338495,124.95,124.93,5.0073017]
[1767200003445,0.69338495,124.95,124.9,0.66494148]
[1767200003853,0.69338495,124.95,124.92,5.0073017]
[1767200004732,0.69338495,124.95,124.91,5.67224318]
[1767200005137,5.0073017,124.95,124.91,5.0073017]
[1767200005371,0.70708065,124.94,124.89,14.64]
[1767200005520,5.0073017,124.94,124.89,20.31224318]
[1767200005845,0.70708065,124.93,124.89,20.31224318]
[1767200006047,0.70708065,124.93,124.89,5.67224318]
[1767200007249,5.71438235,124.93,124.89,5.67224318]
[1767200007447,5.71438235,124.93,124.89,0.66494148]
[1767200008652,0.70708065,124.92,124.89,0.66494148]
[1767200010661,5.71438235,124.93,124.89,5.67224318]
[1767200010871,5.0073017,124.95,124.9,5.0073017]
[1767200011077,5.71438235,124.96,124.91,5.67224318]
[1767200011357,0.70708065,124.95,124.92,0.66494148]
[1767200011762,0.70708065,124.95,124.91,5.67224318]
[1767200012766,0.70708065,124.95,124.92,5.67224318]
[1767200015058,0.70708065,124.96,124.93,5.0073017]
[1767200016063,0.70708065,124.96,124.93,5.67224318]
[1767200016434,105.30708065,124.97,124.94,5.0073017]
[1767200016965,105.30708065,124.97,124.94,5.67224318]
[1767200017781,104.6,124.97,124.95,5.67224318]
[1767200018274,0.70708065,124.98,124.95,5.67224318]
[1767200021241,0.70708065,124.99,124.95,5.0073017]
[1767200021551,0.70708065,124.99,124.96,5.67224318]
[1767200021750,0.70708065,124.99,124.97,5.0073017]
[1767200023955,0.70708065,124.99,124.95,0.66494148]
[1767200024164,0.70708065,124.99,124.96,5.0073017]
[1767200024883,0.70708065,124.99,124.95,0.66494148]
[1767200025079,0.70708065,124.99,124.96,5.0073017]
[1767200027369,0.70708065,124.99,124.95,0.66494148]
[1767200027570,0.70708065,124.98,124.95,5.0073017]
[1767200027764,0.70708065,124.97,124.94,0.66494148]
[1767200028092,0.70708065,124.97,124.94,5.67224318]
[1767200029289,0.70708065,124.97,124.95,5.0073017]
[1767200030983,0.70708065,124.97,124.94,0.66494148]
[1767200031189,0.70708065,124.97,124.95,5.0073017]
[1767200031486,5.0073017,124.99,124.95,5.0073017]
[1767200031687,0.68424444,125.0,124.97,5.0073017]
[1767200031900,0.68424444,125.0,124.95,0.66344216]
[1767200031901,0.68424444,125.0,124.96,5.0073017]
[1767200032192,0.68424444,125.0,124.95,0.66344216]
[1767200032384,0.68424444,125.0,124.96,5.0073017]
[1767200032693,0.68424444,124.99,124.96,5.0073017]
[1767200033299,0.68424444,124.99,124.95,0.66344216]
[1767200033486,0.68424444,124.99,124.95,5.67074386]
[1767200033487,0.68424444,124.98,124.95,5.67074386]
[1767200033789,0.68424444,124.98,124.94,5.0073017]
[1767200033994,0.68424444,124.98,124.94,5.67074386]
[1767200034289,0.68424444,124.98,124.95,5.0073017]
[1767200035091,0.68424444,124.98,124.94,5.67074386]
[1767200035681,0.68424444,124.98,124.94,0.66344216]
[1767200035882,0.68424444,124.98,124.94,5.67074386]
[1767200036880,0.68424444,124.97,124.93,5.0073017]
[1767200037192,0.68424444,124.97,124.93,5.67074386]
[1767200037971,0.68424444,124.97,124.93,5.0073017]
[1767200038176,0.68424444,124.96,124.93,5.0073017]
[1767200038600,0.68424444,124.96,124.94,5.0073017]
[1767200039508,0.68424444,124.98,124.95,0.66344216]
[1767200039688,0.68424444,124.98,124.95,5.67074386]
[1767200040407,105.28424444,124.99,124.96,5.0073017]
[1767200040703,0.68424444,124.96,124.92,19.6273017]
[1767200040892,0.68424444,124.96,124.93,5.0073017]
[1767200043115,0.68424444,124.96,124.94,5.0073017]
[1767200043284,5.0073017,124.98,124.94,5.0073017]
[1767200043285,0.68424444,124.98,124.95,5.0073017]
[1767200044007,0.68424444,125.01,124.94,8.00379333]
[1767200044207,0.68424444,125.01,124.98,5.0073017]
[1767200044509,0.68424444,125.0,124.96,0.66344216]
[1767200044680,0.68424444,125.0,124.96,5.67074386]
[1767200045304,0.68424444,125.0,124.97,5.0073017]
[1767200045497,0.68424444,125.0,124.96,0.66344216]
[1767200045707,0.68424444,125.0,124.97,5.0073017]
[1767200046213,0.68424444,125.0,124.96,5.67074386]
[1767200046919,0.68424444,125.0,124.97,5.67074386]
[1767200048433,0.68424444,125.0,124.96,5.67074386]
[1767200049409,0.68424444,124.97,124.93,0.66344216]
[1767200049625,0.68424444,124.97,124.93,5.67074386]
[1767200049923,0.68424444,124.97,124.9,8.0061712]
[1767200049924,0.68424444,124.97,124.94,5.67074386]
[1767200050321,0.68424444,124.97,124.93,5.0073017]
[1767200050499,0.68424444,124.97,124.93,5.67074386]
[1767200050701,0.68424444,124.97,124.93,0.66344216]
[1767200050906,0.68424444,124.97,124.93,5.67074386]
[1767200051711,5.0073017,124.97,124.93,0.66344216]
[1767200051911,0.68424444,124.96,124.93,0.66344216]
[1767200052110,0.68424444,124.96,124.93,5.67074386]
[1767200052529,0.68424444,124.96,124.93,0.66344216]
[1767200052727,0.68424444,124.96,124.92,3.86792178]
[1767200053113,0.68424444,124.96,124.93,3.20447962]
[1767200053313,0.68424444,124.96,124.93,3.86792178]
[1767200055355,3.88872406,124.96,124.91,0.66344216]
[1767200055554,0.68424444,124.96,124.92,3.86792178]
[1767200056251,0.68424444,124.93,124.9,18.48792178]
[1767200057426,0.68424444,124.93,124.9,15.28344216]
[1767200058351,3.88872406,124.94,124.9,18.48792178]
[1767200058848,0.68424444,124.94,124.9,18.48792178]
[1767200059058,3.88872406,124.94,124.9,18.48792178]
[1767200059954,0.68424444,124.94,124.9,18.48792178]
[1767200060139,3.88872406,124.94,124.9,18.48792178]
[1767200060651,0.68424444,124.94,124.91,0.65762865]
[1767200061153,0.68424444,124.94,124.91,3.86210827]
[1767200062066,3.20447962,124.95,124.92,0.71429699]
[1767200062365,3.20447962,124.95,124.91,3.91877661]
[1767200062546,0.72138171,124.94,124.91,3.91877661]
[1767200064163,0.72138171,124.94,124.91,0.71429699]
[1767200064363,0.72138171,124.94,124.91,3.91877661]
[1767200065463,0.72138171,124.94,124.91,0.71429699]
[1767200065765,0.72138171,124.94,124.91,3.91877661]
[1767200066762,0.72138171,124.94,124.91,0.71429699]
[1767200066961,0.72138171,124.94,124.91,3.91877661]
[1767200068262,0.72138171,124.94,124.91,0.71429699]
[1767200068563,0.72138171,124.94,124.9,3.91877661]
[1767200069143,3.92586133,124.94,124.9,3.91877661]
[1767200070839,0.72138171,124.93,124.9,3.91877661]
[1767200073172,0.72138171,124.94,124.9,3.91877661]
[1767200074471,0.72138171,124.94,124.9,0.71429699]
[1767200074771,0.72138171,124.94,124.9,3.91877661]
[1767200075569,0.72138171,124.93,124.9,0.71429699]
[1767200075757,0.72138171,124.93,124.9,3.91877661]
[1767200079263,0.72138171,124.93,124.9,3.20447962]
[1767200079774,0.72138171,124.93,124.89,3.91877661]
[1767200081280,0.72138171,124.92,124.88,18.53877661]
[1767200081485,3.20447962,124.92,124.88,17.82447962]
[1767200081655,0.72138171,124.91,124.88,17.82447962]
[1767200081986,8.00418315,124.94,124.88,17.82447962]
[1767200081987,0.72138171,124.93,124.89,3.91877661]
[1767200082379,0.72138171,124.93,124.89,0.71429699]
[1767200082556,0.72138171,124.93,124.89,3.20447962]
[1767200082878,0.72138171,124.93,124.89,3.91877661]
[1767200084452,0.72138171,124.92,124.87,0.71429699]
[1767200084674,0.72138171,124.91,124.88,0.71429699]
[1767200085469,0.72138171,124.91,124.88,3.91877661]
[1767200087082,0.72138171,124.91,124.88,0.71429699]
[1767200088281,3.20447962,124.91,124.87,3.20447962]
[1767200088462,0.72138171,124.9,124.87,0.71429699]
[1767200088781,0.72138171,124.89,124.85,3.91877661]
[1767200088970,0.72138171,124.89,124.86,0.71429699]
[1767200090261,0.72138171,124.89,124.86,3.91877661]
[1767200090695,0.72138171,124.9,124.87,3.91877661]
[1767200092294,0.69276164,124.88,124.84,0.67952978]
[1767200092594,0.69276164,124.88,124.85,3.20447962]
[1767200093384,0.69276164,124.88,124.85,3.8840094]
[1767200096384,0.69276164,124.9,124.86,3.20447962]
[1767200096767,0.69276164,124.9,124.86,3.8840094]
[1767200096971,104.6,124.91,124.89,3.20447962]
[1767200097192,0.69276164,124.92,124.87,0.67952978]
[1767200097379,0.69276164,124.91,124.88,3.8840094]
[1767200098093,0.69276164,124.91,124.88,0.67952978]
[1767200098293,0.69276164,124.91,124.88,3.8840094]
[1767200098868,0.69276164,124.91,124.89,3.20447962]
[1767200101191,0.69276164,124.91,124.9,3.20447962]
[1767200101493,112.60416031,124.94,124.9,3.8840094]
[1767200101494,0.69276164,124.93,124.9,3.8840094]
[1767200101806,0.69276164,124.93,124.9,3.20447962]
[1767200103798,0.69276164,124.93,124.88,0.67952978]
[1767200103979,0.69276164,124.93,124.89,3.20447962]
[1767200106903,0.69276164,124.93,124.89,3.8840094]
[1767200107289,0.69276164,124.93,124.9,3.20447962]
[1767200107474,0.69276164,124.93,124.89,3.20447962]
[1767200107898,0.69276164,124.93,124.88,0.67952978]
[1767200108208,0.69276164,124.93,124.9,3.20447962]
[1767200109501,0.69276164,124.93,124.91,3.20447962]
[1767200112008,0.69276164,124.94,124.92,3.20447962]
[1767200112600,0.69276164,124.94,124.92,5.0082718]
[1767200113103,0.69276164,124.94,124.91,0.67952978]
[1767200113306,0.69276164,124.94,124.92,5.0082718]
[1767200114008,0.69276164,124.94,124.91,5.0082718]
[1767200114600,0.69276164,124.94,124.88,8.0072341]
[1767200114809,0.69276164,124.94,124.91,5.0082718]
[1767200116513,0.69276164,124.93,124.89,5.0082718]
[1767200116808,0.69276164,124.91,124.88,0.67952978]
[1767200116999,0.69276164,124.91,124.88,5.68780158]
[1767200118112,0.69276164,124.91,124.89,5.0082718]
[1767200119115,0.69276164,124.91,124.88,0.67952978]
[1767200119300,0.69276164,124.91,124.89,5.0082718]
[1767200122807,0.67339906,124.94,124.9,5.67724598]
[1767200123006,0.67339906,124.94,124.92,5.0082718]
[1767200124612,0.67339906,124.94,124.91,0.66897418]
[1767200124828,0.67339906,124.94,124.9,5.0082718]
[1767200124998,0.67339906,124.94,124.91,5.0082718]
[1767200126295,0.67339906,124.94,124.9,0.66897418]
[1767200126636,0.67339906,124.94,124.91,5.0082718]
[1767200126996,0.67339906,124.94,124.9,0.66897418]
[1767200127196,0.67339906,124.94,124.91,5.0082718]
[1767200129118,0.67339906,124.94,124.9,0.66897418]
[1767200129418,0.67339906,124.93,124.9,5.67724598]
[1767200130619,0.67339906,124.93,124.91,5.0082718]
[1767200131923,0.67339906,124.93,124.9,5.67724598]
[1767200133323,0.67339906,124.93,124.9,0.66897418]
[1767200133523,0.67339906,124.93,124.9,5.67724598]
[1767200133823,0.67339906,124.93,124.89,5.67724598]
[1767200138912,5.0082718,124.94,124.89,5.67724598]
[1767200139227,0.67339906,124.92,124.89,5.0082718]
[1767200139808,0.67339906,124.92,124.89,5.67724598]
[1767200142012,0.67339906,124.92,124.89,5.0082718]
[1767200143032,0.67339906,124.92,124.88,0.66897418]
[1767200143231,0.67339906,124.92,124.89,5.0082718]
[1767200143934,0.67339906,124.92,124.89,5.67724598]
[1767200147830,0.67339906,124.92,124.89,5.0082718]
[1767200148939,0.67339906,124.92,124.88,0.66897418]
[1767200149151,0.67339906,124.92,124.89,5.0082718]
[1767200150263,0.67339906,124.92,124.88,0.66897418]
[1767200150447,0.67339906,124.92,124.89,5.0082718]
[1767200150646,0.67339906,124.92,124.89,5.67724598]
[1767200150844,0.67339906,124.92,124.89,0.66897418]
[1767200151055,0.67339906,124.92,124.89,5.67724598]
[1767200152068,0.67339906,124.92,124.89,0.66897418]
[1767200154940,0.67339906,124.92,124.88,5.72602642]
[1767200155662,113.28474385,124.94,124.9,5.72602642]
[1767200155968,6.64429446,124.93,124.9,5.72602642]
[1767200156143,5.96350091,124.92,124.9,5.72602642]
[1767200156555,6.64429446,124.92,124.9,5.0082718]
[1767200156770,0.68079355,124.92,124.9,5.0082718]
[1767200157060,6.64342911,124.91,124.88,0.71775462]
[1767200157265,0.68079355,124.91,124.88,5.72602642]
[1767200157763,118.29323175,124.94,124.9,0.71775462]
[1767200157950,5.96300695,124.93,124.9,0.71775462]
[1767200158150,5.96300695,124.92,124.9,0.71775462]
[1767200158364,0.68079355,124.93,124.9,0.71775462]
[1767200158536,5.96333134,124.92,124.9,0.71775462]
[1767200158739,0.68079355,124.93,124.9,0.71775462]
[1767200158935,5.9633221,124.92,124.9,0.71775462]
[1767200159135,0.68079355,124.93,124.9,0.71775462]
[1767200159353,5.96332126,124.92,124.9,0.71775462]
[1767200159564,0.68079355,124.93,124.89,5.72602642]
[1767200159749,5.96367959,124.92,124.9,0.71775462]
[1767200159955,0.68079355,124.93,124.9,0.71775462]
[1767200161261,0.68079355,124.93,124.88,5.0082718]
[1767200161466,0.68079355,124.93,124.89,0.71775462]
[1767200161641,0.68079355,124.91,124.88,5.72602642]
[1767200164780,13.01284771,124.93,124.88,5.0082718]
[1767200164980,6.6429454,124.92,124.88,5.72602642]
[1767200165169,5.96215185,124.91,124.88,5.72602642]
[1767200165369,0.68079355,124.92,124.88,5.72602642]
[1767200165568,5.96193737,124.91,124.88,0.71775462]
[1767200165773,0.68079355,124.89,124.85,5.72602642]
[1767200165968,6.64273092,124.88,124.85,0.71775462]
[1767200166275,0.68079355,124.88,124.85,0.71775462]
[1767200169473,0.68079355,124.88,124.84,5.72602642]
[1767200170482,0.68079355,124.88,124.85,5.0082718]
[1767200170782,0.68079355,124.9,124.83,8.01059328]
[1767200170948,0.68079355,124.9,124.87,5.72602642]
[1767200171770,0.68079355,124.9,124.87,0.71775462]
[1767200172469,0.68079355,124.9,124.87,3.92569552]
[1767200172960,0.68079355,124.9,124.87,0.71775462]
[1767200173869,0.68079355,124.9,124.86,3.2079409]
[1767200174074,0.68079355,124.89,124.86,0.71775462]
[1767200174375,0.68079355,124.88,124.84,0.71775462]
[1767200174557,0.68079355,124.88,124.84,3.92569552]
[1767200174759,3.2079409,124.88,124.84,3.92569552]
[1767200175064,0.68079355,124.87,124.84,3.92569552]
[1767200176678,0.68079355,124.88,124.85,0.71775462]
[1767200177456,0.68079355,124.88,124.84,3.92569552]
[1767200178478,3.2079409,124.88,124.84,3.92569552]
[1767200178682,0.68079355,124.87,124.84,3.92569552]
[1767200179880,0.71564692,124.88,124.85,0.68265666]
[1767200180282,0.71564692,124.88,124.85,3.89059756]
[1767200180581,0.71564692,124.88,124.85,0.68265666]
[1767200180760,0.71564692,124.88,124.85,3.89059756]
[1767200181753,0.66544445,124.9,124.86,3.92314051]
[1767200181959,0.66544445,124.89,124.86,3.92314051]
[1767200183076,0.66544445,124.9,124.87,3.92314051]
[1767200183979,0.66544445,124.91,124.88,0.71519961]
[1767200184163,5.94123209,124.9,124.88,3.92314051]
[1767200184359,115.81338935,124.92,124.89,3.92314051]
[1767200184360,105.26544445,124.92,124.89,3.92314051]
[1767200184572,105.26544445,124.92,124.89,0.71519961]
[1767200184880,0.66544445,124.91,124.88,3.92314051]
[1767200185180,0.66544445,124.92,124.89,3.92314051]
[1767200186358,0.66544445,124.94,124.9,3.92314051]
[1767200186560,6.6079974,124.93,124.9,3.92314051]
[1767200186760,0.66544445,124.93,124.9,3.92314051]
[1767200186979,0.66544445,124.93,124.9,0.71519961]
[1767200187167,0.66544445,124.93,124.9,3.92314051]
[1767200187573,0.66544445,124.93,124.86,17.8479409]
[1767200187574,0.66544445,124.93,124.89,3.92314051]
[1767200187960,0.66544445,124.93,124.89,0.71519961]
[1767200188157,0.66544445,124.93,124.89,3.92314051]
[1767200189785,0.66544445,124.93,124.89,3.2079409]
[1767200189975,0.66544445,124.93,124.88,0.71519961]
[1767200189976,0.66544445,124.91,124.88,0.71519961]
[1767200190986,0.66544445,124.91,124.88,3.92314051]
[1767200192688,11.21244113,124.93,124.88,3.2079409]
[1767200192882,6.60759833,124.92,124.88,3.92314051]
[1767200193181,0.66544445,124.92,124.88,3.92314051]
[1767200194287,0.66544445,124.91,124.88,3.92314051]
[1767200194665,0.66544445,124.91,124.88,0.71519961]
[1767200194885,0.66544445,124.9,124.85,14.64]
[1767200195182,0.66544445,124.89,124.86,0.71519961]
[1767200195371,0.66544445,124.89,124.86,3.92314051]
[1767200195566,0.66544445,124.89,124.86,3.2079409]
[1767200197374,0.66544445,124.9,124.87,3.2079409]
[1767200198290,0.66544445,124.9,124.86,0.71519961]
[1767200198592,0.66544445,124.9,124.87,3.2079409]
[1767200198968,0.66544445,124.9,124.86,0.71519961]
[1767200199164,0.66544445,124.9,124.86,3.92314051]
[1767200202185,0.66544445,124.89,124.86,3.92314051]
[1767200202389,3.2079409,124.91,124.86,3.2079409]
[1767200202695,6.60790857,124.9,124.87,3.92314051]
[1767200202869,0.66544445,124.9,124.87,3.92314051]
[1767200203594,112.60526348,124.92,124.87,3.2079409]
[1767200203801,112.60526348,124.92,124.89,3.92314051]
[1767200203802,5.94515867,124.91,124.89,3.92314051]
[1767200204100,104.6,124.92,124.9,3.2079409]
[1767200204340,0.66544445,124.93,124.9,3.2079409]
[1767200204598,5.94711457,124.92,124.9,3.2079409]
[1767200204795,8.00329709,124.95,124.91,3.2079409]
[1767200204998,6.6131217,124.94,124.91,3.92314051]
[1767200205297,0.66544445,124.94,124.91,3.92314051]
[1767200205496,112.60285733,124.96,124.92,3.2079409]
[1767200205679,6.61316093,124.95,124.92,3.2079409]
[1767200205878,0.66544445,124.95,124.92,3.2079409]
[1767200206201,0.66544445,124.95,124.91,0.71519961]
[1767200206498,0.66544445,124.95,124.92,3.2079409]
[1767200208698,0.66544445,124.95,124.92,3.92314051]
[1767200209605,0.66544445,124.95,124.93,3.2079409]
[1767200209790,0.66544445,124.97,124.93,3.92314051]
[1767200209989,5.94678091,124.96,124.94,3.2079409]
[1767200210177,0.66544445,124.99,124.95,3.30168553]
[1767200210378,0.66544445,124.99,124.96,3.2079409]
[1767200211102,0.66544445,125.0,124.97,3.2079409]
[1767200212099,0.66544445,125.0,124.96,0.09374463]
[1767200212404,0.66544445,125.0,124.97,3.2079409]
[1767200213202,0.71231127,125.03,124.98,3.2079409]
[1767200213498,0.71231127,125.02,124.98,0.09374463]
[1767200213677,0.71231127,125.02,124.97,3.2079409]
[1767200213678,0.71231127,125.01,124.97,3.2079409]
[1767200213873,0.71231127,125.01,124.96,0.09374463]
[1767200213874,0.71231127,125.0,124.96,0.09374463]
[1767200214105,0.71231127,125.0,124.97,3.2079409]
[1767200215499,7.99828366,125.03,124.98,3.2079409]
[1767200215703,0.71231127,125.02,124.98,0.09374463]
[1767200215889,0.71231127,125.02,124.99,3.2079409]
[1767200216388,0.71231127,125.02,124.97,0.09374463]
[1767200216583,3.2079409,125.02,124.98,3.2079409]
[1767200216789,0.71231127,125.01,124.97,3.30168553]
[1767200217093,0.71231127,125.01,124.99,3.2079409]
[1767200217292,0.71231127,125.01,124.98,3.2079409]
[1767200217910,0.71231127,125.01,124.99,3.2079409]
[1767200218207,0.71231127,125.01,124.98,3.30168553]
[1767200218410,0.71231127,125.01,124.98,3.2079409]
[1767200218997,0.71231127,125.01,124.94,14.64]
[1767200219198,0.71231127,125.0,124.97,3.2079409]
[1767200220390,0.71231127,125.0,124.96,3.2079409]
[1767200220794,0.71231127,124.99,124.96,3.2079409]
[1767200221104,3.92025217,124.99,124.95,3.30168553]
[1767200221708,0.71231127,125.01,124.98,3.2079409]
[1767200221888,0.71231127,125.01,124.97,3.30168553]
[1767200222088,0.71231127,125.0,124.97,3.30168553]
[1767200223182,0.71231127,125.0,124.97,3.2079409]
[1767200225511,0.71231127,124.99,124.95,3.30168553]
[1767200225696,0.71231127,124.99,124.97,3.2079409]
[1767200225889,0.71231127,124.99,124.96,3.30168553]
[1767200226517,0.71231127,124.99,124.96,0.09374463]
[1767200227115,3.2079409,124.99,124.93,0.09374463]
[1767200227308,3.92025217,124.96,124.93,0.09374463]
[1767200227612,0.71231127,124.96,124.93,0.09374463]
[1767200228315,3.92025217,124.96,124.92,3.2079409]
[1767200228518,3.92025217,124.96,124.92,3.30168553]
[1767200229226,0.71231127,124.96,124.92,3.30168553]
[1767200230321,0.71231127,124.96,124.92,0.09374463]
[1767200230614,0.71231127,124.96,124.92,3.30168553]
[1767200230816,0.71231127,124.96,124.92,0.09374463]
[1767200231013,3.92025217,124.95,124.91,0.09374463]
[1767200231195,0.71231127,124.94,124.91,0.09374463]
[1767200231397,0.71231127,124.94,124.9,17.92168553]
[1767200231598,3.92025217,124.94,124.9,14.71374463]
[1767200232104,3.92025217,124.94,124.9,17.92168553]
[1767200232626,0.71231127,124.94,124.9,17.92168553]
[1767200234524,0.71231127,124.94,124.9,19.72261505]
[1767200235210,0.71231127,124.94,124.9,19.62887042]
[1767200235400,0.71231127,124.94,124.91,5.10261505]
[1767200235908,0.71231127,124.98,124.92,0.09374463]
[1767200236107,20.00241717,124.99,124.92,0.09374463]
[1767200236108,5.72118169,124.96,124.92,0.09374463]
[1767200236621,0.71231127,124.95,124.91,0.09374463]
[1767200236801,0.71231127,124.95,124.9,14.62]
[1767200236802,0.71231127,124.94,124.9,14.71374463]
[1767200237001,0.71231127,124.97,124.91,0.09374463]
[1767200237203,5.72118169,124.95,124.91,0.09374463]
[1767200238325,0.71231127,124.95,124.91,5.10261505]
[1767200240517,5.72118169,124.95,124.91,0.09374463]
[1767200240726,5.72118169,124.95,124.91,5.10261505]
[1767200241423,5.72118169,124.95,124.91,0.09374463]
[1767200244402,5.00887042,124.95,124.91,0.09374463]
[1767200244603,5.00887042,124.95,124.9,5.00887042]
[1767200244604,0.7093222,124.94,124.9,5.00887042]
[1767200244920,0.7093222,124.94,124.9,5.10261505]
[1767200247028,0.7093222,124.94,124.9,0.09374463]
[1767200247228,5.00887042,124.95,124.92,0.09374463]
[1767200247429,5.71819262,124.95,124.91,5.10261505]
[1767200248806,5.71819262,124.95,124.91,0.09374463]
[1767200250323,5.71819262,124.93,124.89,0.09374463]
[1767200250525,0.7093222,124.92,124.89,5.10261505]
[1767200250722,5.71819262,124.93,124.89,5.10261505]
[1767200251032,0.7093222,124.93,124.9,0.09374463]
[1767200251935,5.71819262,124.93,124.9,0.09374463]
[1767200253410,0.7093222,124.93,124.9,0.09374463]
[1767200258335,0.7093222,124.93,124.9,5.10261505]
[1767200261854,0.7093222,124.93,124.9,0.09374463]
[1767200262140,0.7093222,124.93,124.9,5.10261505]
[1767200262737,8.00289164,124.96,124.9,5.00887042]
[1767200262925,10.95255645,124.95,124.91,0.09374463]
[1767200263134,0.7093222,124.94,124.91,0.09374463]
[1767200265322,0.7093222,124.94,124.88,8.00761771]
[1767200265519,0.7093222,124.94,124.9,5.10261505]
[1767200267850,5.00887042,124.94,124.88,22.64761771]
[1767200268054,0.7093222,124.93,124.89,5.10261505]
[1767200270731,0.7093222,124.92,124.88,14.64]
[1767200270951,0.7093222,124.91,124.88,14.64]
[1767200272242,0.7093222,124.91,124.88,19.74261505]
[1767200273026,0.70818488,124.94,124.9,5.10261505]
[1767200273233,0.70818488,124.97,124.91,5.10261505]
[1767200273440,0.70818488,124.95,124.91,5.10261505]
[1767200273650,5.96138311,124.94,124.91,5.10261505]
[1767200274654,0.70818488,124.95,124.91,5.10261505]
[1767200276081,8.0012802,124.98,124.92,5.00887042]
[1767200276356,0.70818488,124.96,124.93,5.00887042]
[1767200276574,6.67277642,124.95,124.93,5.00887042]
[1767200276772,0.70818488,124.95,124.93,5.00887042]
[1767200278169,0.70818488,124.95,124.92,0.09374463]
[1767200278339,0.70818488,124.95,124.92,5.10261505]
[1767200278734,5.7170553,124.97,124.93,0.09374463]
[1767200278933,6.66761637,124.96,124.93,0.09374463]
[1767200279168,0.70818488,124.96,124.93,0.09374463]
[1767200279542,0.70818488,124.99,124.95,0.09374463]
[1767200279736,5.9596147,124.98,124.95,5.10261505]
[1767200279939,0.70818488,124.99,124.95,5.10261505]
[1767200280158,6.66710472,124.98,124.96,5.00887042]
[1767200280364,0.70818488,124.99,124.96,5.00887042]
[1767200281045,0.70818488,124.99,124.95,0.09374463]
[1767200281259,0.70818488,124.99,124.95,5.10261505]
[1767200281656,0.70818488,124.98,124.95,5.10261505]
[1767200282056,0.70818488,125.01,124.97,5.00887042]
[1767200282270,7.99903002,125.02,124.94,14.73374463]
[1767200282271,0.70818488,124.98,124.94,14.73374463]
[1767200282440,0.70818488,124.98,124.95,5.00887042]
[1767200283163,0.70818488,124.98,124.94,19.74261505]
[1767200283341,0.70818488,124.98,124.95,5.00887042]
[1767200283966,0.70818488,124.98,124.94,14.73374463]
[1767200284485,0.70818488,124.98,124.94,19.64887042]
[1767200284642,0.70818488,124.98,124.94,19.74261505]
[1767200285663,0.70818488,124.98,124.94,14.73374463]
[1767200285963,0.70818488,124.98,124.94,19.74261505]
[1767200288775,0.70818488,124.98,124.95,5.00887042]
[1767200290176,0.70818488,124.98,124.96,5.00887042]
[1767200291668,104.6,125.01,124.94,22.6238324]
[1767200291845,5.7170553,125.0,124.96,0.09374463]
[1767200292052,0.70818488,125.0,124.97,5.00887042]
[1767200292251,0.70818488,125.0,124.96,5.10261505]
[1767200292471,0.70818488,125.0,124.97,5.00887042]
[1767200294460,0.70818488,125.0,124.97,3.20241515]
[1767200294642,0.70818488,124.99,124.96,3.20241515]
[1767200294848,0.70818488,124.99,124.95,3.20241515]
[1767200295050,0.70818488,124.99,124.95,3.29615978]
[1767200295948,0.70818488,124.99,124.96,3.20241515]
[1767200296273,0.70818488,125.02,124.97,3.29615978]
[1767200296474,0.70818488,125.0,124.97,3.20241515]
[1767200298785,0.70818488,125.0,124.96,0.09374463]
[1767200299083,0.70818488,125.0,124.95,0.70374254]
[1767200299253,0.70818488,125.0,124.95,3.90615769]
[1767200299254,0.66989226,124.99,124.95,3.90615769]
[1767200302188,0.66989226,124.99,124.95,0.70374254]
[1767200302495,0.66989226,124.99,124.95,3.20241515]
[1767200302665,0.71203137,124.98,124.92,8.00484724]
[1767200302857,0.71203137,124.97,124.93,3.20241515]
[1767200304181,0.71203137,124.97,124.94,3.20241515]
[1767200305079,0.71203137,124.97,124.94,3.92160175]
[1767200305490,0.71203137,124.99,124.95,3.20241515]
[1767200306073,0.71203137,124.99,124.95,3.92160175]
[1767200306467,0.71203137,124.99,124.96,3.20241515]
[1767200306682,0.71203137,124.99,124.96,3.92160175]
[1767200307661,0.71203137,124.99,124.95,3.92160175]
[1767200310889,0.71203137,124.99,124.95,3.20241515]
[1767200311087,0.71203137,124.99,124.95,3.92160175]
[1767200312193,0.71203137,124.99,124.95,0.7191866]
[1767200312401,0.71203137,124.99,124.95,3.92160175]
[1767200315199,0.71203137,124.99,124.95,0.7191866]
[1767200315404,0.71203137,124.99,124.95,3.92160175]
[1767200315773,0.71203137,124.99,124.95,0.7191866]
[1767200315981,0.71203137,124.98,124.94,3.92160175]
[1767200319382,0.71203137,124.98,124.94,0.7191866]
[1767200319684,0.71203137,124.98,124.94,3.92160175]
[1767200319894,0.71203137,124.98,124.95,3.20241515]
[1767200320596,0.71203137,124.98,124.94,0.7191866]